bitfinex/quotes_BTCUSD_20251221
["timestamp","ask_amount","ask_price","bid_price","bid_amount"]
[1766311809323,0.10367,88955.0,88948.0,0.01124252]
[1766311809524,0.10367,88955.0,88950.0,0.01124227]
[1766311809675,0.09213,88955.0,88950.0,0.01124227]
[1766311809858,0.09213,88955.0,88949.0,0.01124239]
[1766311810356,0.09213,88955.0,88946.0,0.00706029]
[1766311810562,0.09213,88955.0,88912.0,0.5302764]
[1766311810563,0.09213,88955.0,88947.0,0.01124265]
[1766311811414,0.09213,88955.0,88946.0,0.01124277]
[1766311811633,0.09213,88955.0,88945.0,0.0112429]
[1766311812006,0.09213,88955.0,88946.0,0.01124277]
[1766311812407,0.10367302,88955.0,88945.0,0.0080829]
[1766311812613,0.10367302,88955.0,88946.0,0.01124277]
[1766311812810,0.10367302,88955.0,88945.0,0.0080829]
[1766311813018,0.10367302,88955.0,88947.0,0.01124265]
[1766311813233,0.10367302,88955.0,88946.0,0.01124277]
[1766311813569,0.10367302,88955.0,88945.0,0.0080829]
[1766311813910,0.10367302,88955.0,88946.0,0.01124277]
[1766311814730,0.10367302,88955.0,88947.0,0.01124265]
[1766311814954,0.10367302,88955.0,88946.0,0.01124277]
[1766311815562,0.10367302,88955.0,88945.0,0.0080829]
[1766311815563,0.10367302,88955.0,88945.0,0.0112429]
[1766311815765,0.10367302,88955.0,88944.0,0.0003]
[1766311815974,0.000549,88945.0,88944.0,0.0003]
[1766311816175,0.00564,88950.0,88944.0,0.0003]
[1766311816963,0.00564,88950.0,88934.0,0.00564]
[1766311816964,0.01154302,88949.0,88934.0,0.00564]
[1766311817988,0.03081191,88949.0,88934.0,0.00564]
[1766311818437,0.01926889,88949.0,88934.0,0.00564]
[1766311818637,0.01124467,88948.0,88934.0,0.00564]
[1766311819208,0.01124467,88948.0,88932.0,0.01124454]
[1766311819418,0.01124467,88948.0,88931.0,0.01124467]
[1766311821265,0.01124467,88948.0,88932.0,0.01124454]
[1766311821462,0.01135586,88947.0,88932.0,0.01124454]
[1766311821631,0.01124467,88948.0,88931.0,0.01124467]
[1766311821837,0.00564,88950.0,88931.0,0.01124467]
[1766311822062,0.01124467,88949.0,88934.0,0.01124429]
[1766311822283,0.01124467,88949.0,88930.0,0.01124479]
[1766311822432,0.01124467,88949.0,88931.0,0.01124467]
[1766311822835,0.01124467,88949.0,88930.0,0.01124479]
[1766311823036,0.06294823,88936.0,88931.0,0.01124467]
[1766311824464,0.06294823,88936.0,88930.0,0.01124479]
[1766311824681,0.06294823,88936.0,88921.0,0.01124593]
[1766311824898,0.06294823,88936.0,88920.0,0.00564]
[1766311824899,0.000249,88930.0,88920.0,0.00564]
[1766311825110,0.000249,88930.0,88920.0,0.01688606]
[1766311825320,0.00564,88935.0,88923.0,0.01124568]
[1766311827529,0.00564,88935.0,88922.0,0.01124581]
[1766311827735,0.00564,88935.0,88921.0,0.01124593]
[1766311827956,0.01029601,88934.0,88921.0,0.01124593]
[1766311828189,0.01029601,88934.0,88920.0,0.00564]
[1766311828395,0.01029601,88934.0,88919.0,0.01124619]
[1766311828605,0.02718207,88934.0,88919.0,0.01124619]
[1766311829441,0.01688606,88934.0,88920.0,0.01124606]
[1766311829650,0.01688606,88934.0,88922.0,0.01124581]
[1766311830059,0.01688606,88934.0,88925.0,0.01124543]
[1766311830272,0.01688606,88934.0,88924.0,0.01124555]
[1766311830707,0.01688606,88934.0,88925.0,0.01124543]
[1766311831030,0.01688606,88934.0,88926.0,0.0112453]
[1766311831238,0.01688606,88934.0,88925.0,0.01124543]
[1766311831415,0.01688606,88934.0,88924.0,0.01124555]
[1766311831643,0.01688606,88934.0,88923.0,0.01124568]
[1766311831855,0.01688606,88934.0,88924.0,0.01124555]
[1766311832238,0.01688606,88934.0,88923.0,0.01124568]
[1766311832452,0.01688606,88934.0,88924.0,0.01124555]
[1766311833078,0.01688606,88934.0,88922.0,0.01124581]
[1766311833304,0.01688606,88934.0,88919.0,0.05623091]
[1766311833498,0.01688606,88934.0,88921.0,0.01124593]
[1766311833663,0.01688606,88934.0,88920.0,0.01124606]
[1766311834174,0.01688606,88934.0,88921.0,0.01124593]
[1766311834383,0.01688606,88934.0,88922.0,0.01124581]
[1766311834563,0.01688606,88934.0,88928.0,0.01124505]
[1766311834763,0.00564,88933.0,88928.0,0.01124505]
[1766311834973,0.00534,88933.0,88929.0,0.01124492]
[1766311835167,0.00534,88933.0,88928.0,0.01124505]
[1766311836430,0.03378859,88936.0,88929.0,0.01124492]
[1766311836632,0.00073487,88935.0,88928.0,0.60084505]
[1766311836969,0.00073487,88935.0,88929.0,0.61433883]
[1766311837241,0.00073487,88935.0,88930.0,0.01124479]
[1766311837382,0.00073487,88935.0,88926.0,0.05622649]
[1766311837383,0.06294823,88932.0,88903.0,0.00064497]
[1766311837592,0.06294823,88932.0,88903.0,0.00628497]
[1766311837593,0.00055,88911.0,88903.0,0.00628497]
[1766311837799,0.06294823,88917.0,88903.0,0.00628497]
[1766311838029,0.07419467,88917.0,88903.0,0.00628497]
[1766311838413,0.06294823,88917.0,88903.0,0.00573597]
[1766311838613,0.07419467,88917.0,88903.0,0.00573597]
[1766311838817,0.07419467,88917.0,88903.0,0.0060949]
[1766311839021,0.03379468,88916.0,88903.0,0.0060949]
[1766311839329,0.01124669,88915.0,88903.0,0.0060949]
[1766311839952,0.03379468,88915.0,88903.0,0.0060949]
[1766311840289,0.03379468,88915.0,88904.0,0.00564]
[1766311840495,0.03379468,88915.0,88904.0,0.00509]
[1766311841735,0.03379468,88915.0,88903.0,0.0004549]
[1766311842528,0.07419467,88917.0,88903.0,0.0004549]
[1766311843257,0.01124669,88915.0,88903.0,0.0004549]
[1766311843477,0.01029601,88914.0,88903.0,0.0004549]
[1766311843686,0.01124669,88915.0,88903.0,0.0004549]
[1766311843687,0.01124694,88913.0,88903.0,0.0004549]
[1766311843900,0.01124745,88909.0,88903.0,0.0004549]
[1766311844313,0.01124872,88899.0,88888.0,0.00564]
[1766311844524,0.06294823,88897.0,88884.0,0.01125061]
[1766311844735,0.06294823,88897.0,88885.0,0.46944]
[1766311844940,0.06294823,88897.0,88882.0,0.00564]
[1766311844941,0.06239923,88897.0,88890.0,0.5896]
[1766311845143,0.06239923,88897.0,88891.0,0.5896]
[1766311845349,0.06239923,88897.0,88890.0,0.47508]
[1766311847237,0.00035848,88899.0,88891.0,1.05904]
[1766311849019,0.00035848,88899.0,88891.0,0.46944]
[1766311849436,0.06067991,88908.0,88895.0,0.01124922]
[1766311849641,0.06067991,88908.0,88895.0,0.60095688]
[1766311850091,0.06067991,88908.0,88895.0,0.58995212]
[1766311850525,0.06067991,88908.0,88896.0,0.005283]
[1766311851571,0.00564,88909.0,88899.0,0.46944]
[1766311851716,0.06632,88915.0,88900.0,0.5896]
[1766311851925,0.06632,88915.0,88899.0,0.46944]
[1766311851926,0.00564,88915.0,88904.0,0.5896]
[1766311852123,0.00564,88915.0,88905.0,0.60309755]
[1766311852357,0.08487602,88922.0,88905.0,0.5896]
[1766311852636,0.03379533,88926.0,88912.0,0.01124707]
[1766311852839,0.00564,88928.0,88913.0,0.01913633]
[1766311853038,0.01050222,88927.0,88913.0,0.01913633]
[1766311853163,0.06068,88929.0,88914.0,0.5896]
[1766311853382,0.05622022,88936.0,88914.0,0.5896]
[1766311853383,0.00564,88935.0,88919.0,0.01124619]
[1766311853596,0.00564,88935.0,88920.0,0.01913527]
[1766311853790,0.06632,88935.0,88920.0,0.01913527]
[1766311854406,0.06632,88935.0,88920.0,0.00564]
[1766311854842,0.06068,88935.0,88920.0,0.00564]
[1766311855231,0.06068,88935.0,88924.0,0.01124555]
[1766311855441,0.00564,88937.0,88925.0,0.60084543]
[1766311855665,0.06294823,88939.0,88926.0,0.0168853]
[1766311855904,0.06294823,88939.0,88929.0,0.01124492]
[1766311856198,0.02419893,88942.0,88929.0,0.01124492]
[1766311856445,0.06068,88943.0,88929.0,0.01124492]
[1766311856647,0.01050648,88942.0,88929.0,0.01124492]
[1766311856845,0.06068,88943.0,88928.0,0.60084505]
[1766311857052,0.01050647,88942.0,88928.0,0.60084505]
[1766311857268,0.06068,88943.0,88928.0,0.60084505]
[1766311857469,0.01050718,88942.0,88928.0,0.60084505]
[1766311857672,0.00564,88945.0,88927.0,0.01124517]
[1766311857673,0.06068,88941.0,88927.0,0.01124517]
[1766311857872,0.06068,88941.0,88929.0,0.01124492]
[1766311858034,0.06068,88941.0,88928.0,0.01124505]
[1766311858235,0.06068,88941.0,88927.0,0.01135283]
[1766311858445,0.06068,88941.0,88928.0,0.01124505]
[1766311858883,0.06068,88941.0,88929.0,0.01124492]
[1766311859246,0.06068,88941.0,88928.0,0.01124505]
[1766311859445,0.06068,88941.0,88929.0,0.01124492]
[1766311860127,0.06068,88941.0,88932.0,0.01124454]
[1766311860334,0.06068,88941.0,88932.0,0.00564]
[1766311860509,0.00564,88945.0,88932.0,0.00564]
[1766311860694,0.01050823,88944.0,88932.0,0.00564]
[1766311860893,0.01050823,88943.0,88932.0,0.00564]
[1766311861104,0.06632,88945.0,88932.0,0.00564]
[1766311862372,0.06632,88945.0,88933.0,1.05904]
[1766311862939,0.06068,88945.0,88933.0,1.05904]
[1766311863119,0.05648344,88945.0,88934.0,0.06746575]
[1766311863324,0.05648344,88945.0,88936.0,0.01124404]
[1766311863545,0.05648344,88945.0,88935.0,0.01124416]
[1766311863993,0.03942384,88951.0,88935.0,0.60084416]
[1766311864550,0.00055,88935.0,88925.0,0.01124543]
[1766311864694,0.00055,88935.0,88928.0,0.00564]
[1766311865120,0.05648,88943.0,88928.0,0.00564]
[1766311865323,0.05648,88941.0,88928.0,0.00564]
[1766311865570,0.06677601,88940.0,88928.0,0.00564]
[1766311866251,0.06294823,88939.0,88928.0,0.00564]
[1766311866661,0.06294823,88939.0,88919.0,0.05623037]
[1766311866662,0.06677601,88938.0,88922.0,0.52353]
[1766311866836,0.06688359,88938.0,88921.0,0.01124593]
[1766311867049,0.06688359,88938.0,88922.0,0.00564]
[1766311867413,0.06688359,88938.0,88922.0,0.01688581]
[1766311867851,0.06688359,88938.0,88923.0,0.01124568]
[1766311868589,0.04248,88936.0,88923.0,0.01124568]
[1766311869209,0.05277601,88936.0,88923.0,0.01124568]
[1766311869649,0.04248,88936.0,88923.0,0.01124568]
[1766311869850,0.04248,88936.0,88924.0,0.01124555]
[1766311870168,0.04248,88936.0,88922.0,0.01688581]
[1766311870169,0.04248,88936.0,88922.0,0.00564]
[1766311871059,0.04248,88936.0,88922.0,0.01688581]
[1766311871240,0.04248,88936.0,88923.0,0.01124568]
[1766311872813,0.04248,88936.0,88924.0,0.00564]
[1766311873054,0.04248,88936.0,88917.0,0.01134644]
[1766311873055,0.0312,88934.0,88925.0,0.00564]
[1766311873263,0.05631957,88937.0,88917.0,0.0001]
[1766311873264,0.02556,88932.0,88917.0,0.0001]
[1766311873478,0.02556,88930.0,88918.0,0.00564]
[1766311873688,0.01029601,88929.0,88918.0,0.00564]
[1766311873910,0.01029601,88929.0,88918.0,0.01688631]
[1766311874121,0.01029601,88929.0,88919.0,0.01124619]
[1766311874322,0.02556,88930.0,88920.0,0.01124606]
[1766311874521,0.02556,88930.0,88919.0,0.01124619]
[1766311874696,0.02556,88930.0,88921.0,0.00564]
[1766311879069,0.02556,88930.0,88910.0,0.11252364]
[1766311879272,0.01418,88928.0,88911.0,0.0168872]
[1766311879682,0.01418,88928.0,88912.0,0.01124707]
[1766311879842,0.01418,88928.0,88913.0,0.01124694]
[1766311880044,0.01418,88928.0,88911.0,0.00564]
[1766311880244,0.02154055,88932.0,88912.0,0.00564]
[1766311880245,0.00854,88925.0,88912.0,0.00564]
[1766311880443,0.02154118,88927.0,88912.0,0.00564]
[1766311880444,0.00854,88923.0,88912.0,0.00564]
[1766311880765,0.0112453,88926.0,88912.0,0.00564]
[1766311880766,0.00854,88921.0,88912.0,0.00564]
[1766311881114,0.00854,88921.0,88900.0,0.06749154]
[1766311881323,0.00854,88919.0,88902.0,0.01124834]
[1766311881537,0.01029601,88918.0,88902.0,0.01124834]
[1766311881727,0.02427241,88923.0,88900.0,0.01124859]
[1766311881895,0.01688581,88922.0,88918.0,0.000549]
[1766311882114,0.00564,88922.0,88918.0,0.000549]
[1766311882288,0.00564,88922.0,88904.0,1.10000808]
[1766311882896,0.00564,88922.0,88905.0,0.01124796]
[1766311883096,0.00564,88922.0,88906.0,0.01124783]
[1766311883316,0.00564,88922.0,88905.0,0.01124796]
[1766311883557,0.00564,88922.0,88904.0,1.10000808]
[1766311884176,0.00564,88922.0,88905.0,0.01124796]
[1766311884342,0.00564,88922.0,88904.0,1.10000808]
[1766311884540,0.00564,88922.0,88905.0,0.01124796]
[1766311885281,0.00564,88922.0,88904.0,1.10000808]
[1766311885481,0.00564,88922.0,88905.0,0.01124796]
[1766311885714,0.00564,88922.0,88904.0,0.47849]
[1766311886006,0.01688581,88922.0,88902.0,0.01688834]
[1766311886176,0.01688581,88922.0,88902.0,0.00564]
[1766311886177,0.01124644,88917.0,88902.0,0.00564]
[1766311886388,0.01124631,88918.0,88902.0,0.00564]
[1766311886389,0.01029601,88916.0,88902.0,0.00564]
[1766311886611,0.02154257,88916.0,88902.0,0.00564]
[1766311886831,0.06294823,88910.0,88895.0,0.00024446]
[1766311887032,0.06748817,88905.0,88895.0,0.00024446]
[1766311887190,0.02718409,88904.0,88895.0,0.00024446]
[1766311887388,0.01124821,88903.0,88895.0,0.00024446]
[1766311887591,0.01029601,88902.0,88895.0,0.00024446]
[1766311887996,0.01040353,88902.0,88895.0,0.00024446]
[1766311889523,0.00010752,88902.0,88895.0,0.00024446]
[1766311890108,0.01124859,88900.0,88895.0,0.00024446]
[1766311890298,0.01124884,88898.0,88895.0,0.00024446]
[1766311890533,0.01029601,88897.0,88895.0,0.00024446]
[1766311891084,0.00564,88898.0,88895.0,0.00024446]
[1766311891284,0.06294823,88896.0,88895.0,0.00024446]
[1766311893285,0.06239923,88896.0,88895.0,0.00024446]
[1766311894954,0.06239923,88896.0,88886.0,0.01125036]
[1766311895138,0.06239923,88896.0,88885.0,0.00273446]
[1766311895540,0.06239923,88896.0,88885.0,0.01398495]
[1766311895745,0.06239923,88896.0,88886.0,0.01125036]
[1766311897008,0.06239923,88896.0,88885.0,0.01398495]
[1766311897216,0.06239923,88896.0,88886.0,0.01125036]
[1766311897836,0.00010752,88902.0,88886.0,0.01125036]
[1766311898054,0.00010752,88902.0,88889.0,0.60529998]
[1766311898055,0.00564,88901.0,88889.0,0.60529998]
[1766311898277,0.00509,88901.0,88890.0,0.02474968]
[1766311898752,0.00509,88901.0,88890.0,0.01349983]
[1766311898977,9e-05,88901.0,88889.0,0.60529998]
[1766311899411,9e-05,88901.0,88889.0,0.59405]
[1766311899627,0.00010752,88902.0,88889.0,0.59405]
[1766311899829,0.00010752,88902.0,88891.0,0.49118]
[1766311900042,0.00010752,88902.0,88891.0,1.08523]
[1766311900871,0.00010752,88902.0,88891.0,0.49118]
[1766311902260,0.00010752,88902.0,88892.0,0.00564]
[1766311903590,0.00010752,88902.0,88892.0,0.00314]
[1766311904857,0.01135788,88902.0,88892.0,0.00314]
[1766311907194,0.01135788,88902.0,88892.0,0.002591]
[1766311907399,0.01135788,88902.0,88892.0,0.00173067]
[1766311909309,0.02260622,88902.0,88892.0,0.00173067]
[1766311909506,0.01124872,88899.0,88892.0,0.00173067]
[1766311909732,0.01029601,88898.0,88885.0,0.00564]
[1766311910250,0.01124846,88901.0,88885.0,0.00564]
[1766311910452,0.02249945,88901.0,88885.0,0.00564]
[1766311911262,0.01124859,88900.0,88885.0,0.00564]
[1766311912719,0.06294823,88896.0,88884.0,0.00564]
[1766311912941,0.01029601,88895.0,88884.0,0.00564]
[1766311918600,0.01029601,88895.0,88887.0,0.00024447]
[1766311921472,0.00010752,88902.0,88887.0,0.00024447]
[1766311921473,0.02429464,88908.0,88901.0,0.59405]
[1766311921712,0.00011,88916.0,88906.0,0.59405]
[1766311921937,0.01056,88915.0,88906.0,0.00035848]
[1766311922137,0.03003,88913.0,88905.0,0.00564]
[1766311922367,0.03003,88911.0,88905.0,0.00564]
[1766311922536,0.03003,88911.0,88898.0,0.01124884]
[1766311922537,0.01875,88909.0,88906.0,0.00564]
[1766311923779,0.01875,88905.0,88894.0,0.01124935]
[1766311924098,0.01875,88905.0,88895.0,0.00564]
[1766311924355,0.01875,88905.0,88896.0,0.0112491]
[1766311924693,0.01875,88905.0,88897.0,0.01124897]
[1766311924899,0.01875,88905.0,88896.0,0.0112491]
[1766311925102,0.01875,88905.0,88898.0,0.00564]
[1766311926333,0.01056,88905.0,88899.0,0.00564]
[1766311927420,0.01056,88905.0,88897.0,0.01124897]
[1766311927738,0.01056,88905.0,88900.0,0.00564]
[1766311929595,0.01056,88905.0,88892.0,0.04504]
[1766311929596,0.01056,88905.0,88868.0,0.06029628]
[1766311929597,0.000549,88900.0,88868.0,0.06029628]
[1766311929798,0.000549,88900.0,88867.0,0.0004]
[1766311929799,0.06294823,88881.0,88867.0,0.0004]
[1766311930578,0.0242914,88885.0,88877.0,0.0112515]
[1766311930785,0.06294823,88893.0,88878.0,0.55159817]
[1766311930998,0.03388,88892.0,88878.0,0.00564]
[1766311931399,0.06294823,88879.0,88878.0,0.00564]
[1766311934841,0.06294823,88879.0,88878.0,0.005091]
[1766311935049,0.06294823,88879.0,88878.0,0.00564]
[1766311938253,0.09118823,88879.0,88878.0,0.00564]
[1766311938666,0.09118823,88879.0,88878.0,0.00591508]
[1766311939068,0.06294823,88879.0,88878.0,0.00591508]
[1766311939863,0.06239923,88879.0,88878.0,0.00591508]
[1766311946147,0.06239923,88879.0,88878.0,0.00027508]
[1766311946351,0.06239923,88879.0,88878.0,0.00591508]
[1766311951401,0.05539649,88879.0,88878.0,0.00591508]
[1766311951611,0.07455663,88893.0,88878.0,0.58908508]
[1766311951815,0.0112496,88892.0,88878.0,1.06351]
[1766311952015,0.0554,88892.0,88879.0,0.00024452]
[1766311952231,0.07455663,88893.0,88879.0,0.00024452]
[1766311952232,0.06330716,88893.0,88881.0,0.4747]
[1766311952434,0.06330716,88893.0,88883.0,0.58317]
[1766311952632,0.06330716,88893.0,88884.0,0.00564]
[1766311955968,0.11870716,88893.0,88884.0,0.00564]
[1766311958099,0.02430211,88892.0,88884.0,0.00564]
[1766311958310,0.32830457,88907.0,88884.0,0.00564]
[1766311958311,0.13512823,88911.0,88896.0,0.6238]
[1766311958490,0.07218,88910.0,88897.0,0.05068]
[1766311958830,0.07218,88910.0,88900.0,0.01124859]
[1766311959165,0.07218,88910.0,88898.0,0.01124884]
[1766311959366,0.07218,88910.0,88897.0,0.06192897]
[1766311959828,0.07218,88910.0,88898.0,0.01124884]
[1766311960377,0.07218,88910.0,88897.0,0.06192897]
[1766311960581,0.07218,88910.0,88898.0,0.01124884]
[1766311960918,0.07218,88910.0,88899.0,0.01124872]
[1766311961330,0.07218,88910.0,88900.0,0.01124859]
[1766311961471,0.06294823,88911.0,88901.0,1.09191]
[1766311961669,0.06294823,88911.0,88902.0,0.00564]
[1766311965000,0.07218,88909.0,88902.0,0.00564]
[1766311965202,0.07218,88909.0,88902.0,0.005091]
[1766311965411,0.07218,88907.0,88902.0,0.005091]
[1766311965615,0.07218,88907.0,88902.0,1e-06]
[1766311965979,0.02824,88907.0,88892.0,0.46811]
[1766311966188,0.02824,88907.0,88866.0,0.48368581]
[1766311966189,0.00055,88892.0,88889.0,0.03979]
[1766311966389,0.00055,88892.0,88890.0,0.00564]
[1766311966542,0.06294823,88893.0,88890.0,0.00564]
[1766311967722,0.06294823,88893.0,88887.0,0.01125023]
[1766311967723,0.06294823,88893.0,88882.0,0.01125087]
[1766311967924,0.06294823,88893.0,88882.0,0.06750461]
[1766311968095,0.06294823,88893.0,88883.0,0.06193074]
[1766311968308,0.06294823,88893.0,88885.0,0.01125049]
[1766311968524,0.06239923,88893.0,88887.0,0.01125023]
[1766311968702,0.06239923,88893.0,88888.0,0.00564]
[1766311969292,0.06239923,88893.0,88885.0,0.01125049]
[1766311969503,0.06239923,88893.0,88889.0,0.00564]
[1766311972104,0.06239923,88893.0,88879.0,0.01149577]
[1766311972345,0.06239923,88893.0,88882.0,0.04504]
[1766311972542,0.06239923,88893.0,88879.0,0.01149577]
[1766311972755,0.06239923,88893.0,88883.0,0.00564]
[1766311973617,0.06239923,88893.0,88883.0,0.01689074]
[1766311973818,0.06239923,88893.0,88883.0,0.00564]
[1766311974021,0.06239923,88893.0,88883.0,0.01689074]
[1766311974159,0.06239923,88893.0,88883.0,0.00564]
[1766311974360,0.06239923,88893.0,88883.0,0.01689074]
[1766311974990,0.06239923,88893.0,88883.0,0.00564]
[1766311975197,0.06239923,88893.0,88883.0,0.01689074]
[1766311975597,0.06239923,88893.0,88883.0,0.00564]
[1766311975859,0.01124846,88901.0,88883.0,0.01689074]
[1766311976569,0.01124834,88902.0,88884.0,0.01125061]
[1766311976800,0.01124821,88903.0,88885.0,0.01125049]
[1766311977754,0.0674895,88903.0,88883.0,0.01689074]
[1766311977972,0.01124834,88902.0,88883.0,0.01689074]
[1766311978187,0.01124834,88902.0,88884.0,0.01125061]
[1766311978416,0.01124821,88903.0,88884.0,0.01125061]
[1766311978647,0.01124834,88902.0,88884.0,0.01125061]
[1766311980432,0.01124821,88903.0,88884.0,0.01125061]
[1766311980648,0.01124821,88903.0,88885.0,0.01125049]
[1766311980875,0.01124821,88903.0,88885.0,0.01689049]
[1766311981540,0.01124846,88901.0,88885.0,0.00564]
[1766311981968,0.01124834,88902.0,88885.0,0.00564]
[1766311982413,0.01124821,88903.0,88885.0,0.00564]
[1766311982639,0.02426843,88906.0,88889.0,0.47935998]
[1766311982857,0.00570862,88907.0,88885.0,0.00564]
[1766311982858,6.862e-05,88907.0,88892.0,0.13044547]
[1766311983072,6.862e-05,88907.0,88896.0,0.0112491]
[1766311983288,6.862e-05,88907.0,88894.0,0.01124935]
[1766311983500,6.862e-05,88907.0,88895.0,0.01124922]
[1766311983719,6.862e-05,88907.0,88894.0,0.01124935]
[1766311983923,6.862e-05,88907.0,88895.0,0.00564]
[1766311987180,6.862e-05,88907.0,88895.0,0.01688922]
[1766311988223,6.862e-05,88907.0,88896.0,0.0112491]
[1766311988934,6.862e-05,88907.0,88897.0,0.01124897]
[1766311990126,6.862e-05,88907.0,88899.0,0.01124872]
[1766311990335,6.862e-05,88907.0,88895.0,0.00564]
[1766311990540,6.862e-05,88907.0,88883.0,0.04504]
[1766311990541,0.00055,88895.0,88883.0,0.04504]
[1766311990739,0.00055,88895.0,88876.0,0.01125163]
[1766311990740,0.02154623,88895.0,88884.0,0.00564]
[1766311991071,0.00974701,88895.0,88884.0,0.00564]
[1766311991713,0.00974701,88897.0,88884.0,0.005091]
[1766311992857,0.02099585,88898.0,88884.0,0.005091]
[1766311994216,0.00974701,88898.0,88884.0,0.005091]
[1766311994860,0.02099585,88898.0,88884.0,0.005091]
[1766311995265,0.00974701,88898.0,88884.0,0.005091]
[1766311995467,0.01124872,88899.0,88884.0,0.005091]
[1766311995779,0.05624053,88904.0,88884.0,0.593391]
[1766311995998,0.05624053,88904.0,88885.0,0.07419872]
[1766311996738,0.01124796,88905.0,88885.0,0.07419872]
[1766311996940,0.01124808,88904.0,88885.0,0.07419872]
[1766311997164,0.01124808,88904.0,88886.0,0.01125036]
[1766311997971,0.01124796,88905.0,88886.0,0.01125036]
[1766311998560,0.03035812,88906.0,88892.0,0.0112496]
[1766311998729,0.03035812,88906.0,88888.0,1.06395]
[1766311998730,6.862e-05,88907.0,88893.0,0.00564]
[1766311999071,6.862e-05,88907.0,88893.0,0.01913937]
[1766311999834,6.862e-05,88907.0,88893.0,0.03038884]
[1766312000039,6.862e-05,88907.0,88897.0,0.01124897]
[1766312000973,6.862e-05,88907.0,88898.0,0.01124884]
[1766312001426,6.862e-05,88907.0,88899.0,0.00564]
[1766312004745,6.862e-05,88907.0,88899.0,0.00064]
[1766312004953,6.862e-05,88907.0,88893.0,0.00564]
[1766312004954,0.00055,88899.0,88893.0,0.00564]
[1766312005184,0.01124859,88900.0,88894.0,0.00564]
[1766312005405,0.00974701,88899.0,88894.0,0.00564]
[1766312005609,0.01055277,88898.0,88894.0,0.00564]
[1766312005843,0.01055277,88897.0,88894.0,0.00509]
[1766312006050,0.02426843,88904.0,88894.0,0.00509]
[1766312006051,0.01055277,88896.0,88894.0,0.00509]
[1766312006252,0.01124834,88902.0,88894.0,0.00509]
[1766312006427,0.01055243,88901.0,88894.0,0.00509]
[1766312006744,0.02180102,88900.0,88894.0,0.00509]
[1766312006950,0.01055243,88899.0,88894.0,0.00509]
[1766312007154,0.01055243,88898.0,88894.0,0.00509]
[1766312007359,0.01055243,88897.0,88894.0,0.00509]
[1766312007549,0.01055243,88896.0,88894.0,0.00509]
[1766312007779,0.01124859,88900.0,88894.0,0.00509]
[1766312008010,0.01055228,88899.0,88894.0,0.00509]
[1766312008194,0.01124859,88900.0,88894.0,0.00509]
[1766312008195,0.01055228,88898.0,88894.0,0.00509]
[1766312008438,0.01055228,88897.0,88894.0,0.00509]
[1766312008640,0.01055228,88896.0,88894.0,0.00509]
[1766312008966,0.01124884,88898.0,88892.0,0.00564]
[1766312009158,0.01055213,88897.0,88892.0,0.00564]
[1766312009506,0.01055213,88896.0,88892.0,0.00564]
[1766312009730,0.01124884,88898.0,88892.0,0.00564]
[1766312009950,0.01124884,88898.0,88879.0,0.00024452]
[1766312009951,0.01124922,88895.0,88879.0,0.00024452]
[1766312010169,0.00974701,88894.0,88880.0,0.05068]
[1766312010615,0.00974701,88894.0,88881.0,0.00564]
[1766312011243,0.00974701,88896.0,88881.0,0.00564]
[1766312011440,0.01055142,88895.0,88881.0,0.00564]
[1766312011656,0.00974701,88894.0,88881.0,0.00564]
[1766312012607,0.02099598,88897.0,88881.0,0.00564]
[1766312012835,0.01055112,88896.0,88881.0,0.00564]
[1766312013013,0.02029813,88895.0,88881.0,0.00564]
[1766312013214,0.02029813,88895.0,88879.0,0.01149577]
[1766312013215,0.05624928,88891.0,88879.0,0.00024452]
[1766312013421,0.01124998,88889.0,88882.0,0.00564]
[1766312013621,0.00974701,88888.0,88882.0,0.00564]
[1766312015970,0.0112496,88892.0,88882.0,0.00564]
[1766312016198,0.01054866,88891.0,88882.0,0.00564]
[1766312016378,0.01054866,88890.0,88882.0,0.00564]
[1766312016582,0.06749707,88893.0,88882.0,0.00564]
[1766312016816,0.02179722,88892.0,88882.0,0.00564]
[1766312017018,0.01054762,88891.0,88882.0,0.00564]
[1766312017218,0.01054762,88890.0,88882.0,0.00564]
[1766312017342,0.0112496,88892.0,88882.0,0.00564]
[1766312017541,0.01054682,88891.0,88882.0,0.00564]
[1766312017739,0.01054682,88890.0,88882.0,0.00564]
[1766312017964,0.0112496,88892.0,88882.0,0.00564]
[1766312018157,0.01054682,88891.0,88882.0,0.00564]
[1766312018397,0.01054682,88890.0,88882.0,0.00564]
[1766312018602,0.0112496,88892.0,88882.0,0.00564]
[1766312018794,0.02179597,88891.0,88882.0,0.00564]
[1766312019044,0.01054624,88890.0,88882.0,0.00564]
[1766312019198,0.01124922,88895.0,88890.0,0.000549]
[1766312019548,0.02179522,88894.0,88890.0,0.000549]
[1766312019673,0.01054587,88893.0,88890.0,0.000549]
[1766312019875,0.01054587,88892.0,88882.0,0.00564]
[1766312020117,0.01054587,88891.0,88882.0,0.00564]
[1766312020321,0.01054587,88890.0,88882.0,0.00564]
[1766312020505,0.01124922,88895.0,88882.0,0.00564]
[1766312020702,0.0105457,88894.0,88882.0,0.00564]
[1766312020910,0.0105457,88893.0,88882.0,0.00564]
[1766312021155,0.0105457,88892.0,88882.0,0.00564]
[1766312021371,0.0105457,88891.0,88882.0,0.00564]
[1766312021651,0.0105457,88890.0,88882.0,0.00564]
[1766312021856,0.01124922,88895.0,88882.0,0.00564]
[1766312022060,0.0105451,88894.0,88882.0,0.00564]
[1766312022225,0.0105451,88893.0,88882.0,0.00564]
[1766312022412,0.0105451,88892.0,88882.0,0.00564]
[1766312022615,0.0105451,88891.0,88882.0,0.00564]
[1766312022819,0.01124947,88893.0,88882.0,0.00564]
[1766312023058,0.01054459,88892.0,88882.0,0.00564]
[1766312023269,0.01054459,88891.0,88882.0,0.00564]
[1766312023490,0.01054418,88890.0,88882.0,0.00564]
[1766312023695,0.01124935,88894.0,88882.0,0.00564]
[1766312023899,0.02179366,88893.0,88882.0,0.00564]
[1766312024233,0.01054419,88892.0,88882.0,0.00564]
[1766312025320,0.01125036,88886.0,88879.0,0.00588452]
[1766312025560,0.00974701,88885.0,88879.0,0.00588452]
[1766312025732,0.0209975,88885.0,88879.0,0.00588452]
[1766312025935,0.00974701,88885.0,88879.0,0.00588452]
[1766312026283,0.00974701,88885.0,88879.0,0.00024452]
[1766312026521,0.00974701,88886.0,88879.0,0.00024452]
[1766312027739,0.00974701,88887.0,88879.0,0.00024452]
[1766312028329,0.02099724,88887.0,88879.0,0.00024452]
[1766312030092,0.01125036,88886.0,88879.0,0.00024452]
[1766312030250,0.00974701,88885.0,88879.0,0.00024452]
[1766312030822,0.02889858,88885.0,88879.0,0.00024452]